bitfinex-derivatives/quotes_SOLF0:USTF0_20241012
["timestamp","ask_amount","ask_price","bid_price","bid_amount"]
[1728739395569,8.36,146.82,146.76,2.7342]
[1728739395770,11.7668,146.81,146.76,11.0942]
[1728739396964,3.4068,146.8,146.76,11.0942]
[1728739397371,3.4068,146.8,146.77,8.36]
[1728739398071,3.4068,146.8,146.76,2.7342]
[1728739398273,3.4068,146.8,146.77,8.36]
[1728739399678,8.36,146.82,146.77,8.36]
[1728739400480,3.4069,146.8,146.77,8.36]
[1728739404572,3.4069,146.8,146.78,8.36]
[1728739404967,3.4067,146.81,146.78,8.36]
[1728739406082,3.4064,146.82,146.79,8.36]
[1728739408884,3.4064,146.82,146.78,8.36]
[1728739409181,8.36,146.82,146.77,8.36]
[1728739409786,3.4067,146.81,146.77,8.36]
[1728739410081,8.36,146.82,146.76,11.0942]
[1728739410976,8.36,146.82,146.76,2.7342]
[1728739411179,8.36,146.79,146.75,0.12502]
[1728739411780,3.4074,146.78,146.75,0.12502]
[1728739412572,3.4077,146.76,146.75,0.12502]
[1728739412774,11.7677,146.76,146.75,0.12502]
[1728739413178,3.4077,146.76,146.75,0.12502]
[1728739415284,11.7677,146.76,146.75,0.12502]
[1728739419483,3.4077,146.76,146.75,0.12502]
[1728739422692,11.7675,146.77,146.75,0.12502]
[1728739429097,8.36,146.76,146.75,0.12502]
[1728739437904,11.7677,146.76,146.75,0.12502]
[1728739453015,3.4077,146.76,146.75,0.12502]
[1728739457411,11.7677,146.76,146.75,0.12502]
[1728739460411,3.4073,146.78,146.75,0.12502]
[1728739460609,8.36,146.77,146.75,0.12502]
[1728739461010,1.4148,146.81,146.75,0.12502]
[1728739461218,2.8118,146.85,146.75,8.48502]
[1728739461417,8.36,146.79,146.75,8.48502]
[1728739462423,11.767,146.79,146.75,8.48502]
[1728739462618,2.8118,146.85,146.75,8.48502]
[1728739462824,8.36,146.79,146.75,8.48502]
[1728739463221,8.36,146.79,146.76,8.36]
[1728739463523,11.7669,146.8,146.76,8.36]
[1728739464118,68.28994443,146.86,146.75,0.12502]
[1728739464119,62.87624443,146.86,146.79,8.36]
[1728739464321,1.25236165,146.85,146.79,8.36]
[1728739464623,1.25236165,146.85,146.75,0.12502]
[1728739464624,11.7658,146.85,146.8,8.36]
[1728739464826,8.36,146.85,146.8,8.36]
[1728739465125,3.4061,146.84,146.8,8.36]
[1728739465622,11.7661,146.84,146.8,8.36]
[1728739466033,11.7661,146.84,146.79,5.1914]
[1728739466034,8.36,146.83,146.79,5.1914]
[1728739466212,8.36,146.82,146.79,5.1914]
[1728739467419,11.7664,146.82,146.79,5.1914]
[1728739469420,8.36,146.82,146.79,5.1914]
[1728739469820,8.36,146.82,146.79,13.5514]
[1728739472525,8.36,146.82,146.79,5.1914]
[1728739472826,3.4062,146.83,146.79,5.1914]
[1728739473027,11.7662,146.83,146.79,5.1914]
[1728739473922,3.4066,146.81,146.75,3.53292]
[1728739474220,8.36,146.83,146.77,8.36]
[1728739474924,3.4059,146.84,146.79,8.36]
[1728739475120,8.36,146.83,146.79,8.36]
[1728739475522,11.7663,146.83,146.79,8.36]
[1728739476529,8.36,146.83,146.79,8.36]
[1728739476827,11.7664,146.82,146.77,8.36]
[1728739478633,11.7664,146.82,146.76,6.0622]
[1728739478831,11.7664,146.82,146.77,8.36]
[1728739482537,3.4066,146.81,146.77,8.36]
[1728739482732,65.83481714,146.87,146.76,11.0146]
[1728739482733,8.36,146.8,146.76,11.0146]
[1728739482930,8.36,146.79,146.76,2.6546]
[1728739483235,8.36,146.8,146.76,2.6546]
[1728739484536,3.4075,146.77,146.76,2.6546]
[1728739484737,8.36,146.8,146.76,2.6546]
[1728739485129,3.4073,146.78,146.75,2.70292]
[1728739485732,3.4073,146.78,146.75,11.06292]
[1728739486438,3.4073,146.78,146.75,2.70292]
[1728739487339,8.36,146.79,146.75,0.12502]
[1728739487542,3.4075,146.77,146.75,0.12502]
[1728739494455,3.4075,146.77,146.75,8.48502]
[1728739499255,3.4074,146.78,146.75,8.48502]
[1728739501948,3.4071,146.79,146.75,8.48502]
[1728739502554,3.4071,146.79,146.76,8.36]
[1728739502755,8.36,146.82,146.78,8.36]
[1728739502945,8.36,146.83,146.79,8.36]
[1728739503147,65.83481714,146.87,146.8,8.36]
[1728739503148,8.36,146.84,146.8,8.36]
[1728739503352,3.4062,146.83,146.8,8.36]
[1728739504357,0.12502,146.87,146.8,8.36]
[1728739504654,8.36,146.85,146.8,8.36]
[1728739504850,8.36,146.83,146.79,8.36]
[1728739505360,8.36,146.83,146.8,8.36]
[1728739505859,11.7663,146.83,146.8,8.36]
[1728739506652,3.4066,146.81,146.78,8.36]
[1728739506859,3.4066,146.81,146.77,8.36]
[1728739507255,3.48997342,146.8,146.76,13.7136]
[1728739507453,3.48997342,146.8,146.76,8.36]
[1728739507955,3.48997342,146.8,146.75,0.12502]
[1728739507956,8.36,146.79,146.75,0.12502]
[1728739508861,3.4073,146.78,146.75,0.12502]
[1728739509559,11.7671,146.79,146.75,0.12502]
[1728739512362,11.7671,146.79,146.75,8.48502]
[1728739513665,8.36,146.79,146.75,0.12502]
[1728739513965,11.7674,146.78,146.75,0.12502]
[1728739514163,62.99758037,146.87,146.75,0.12502]
[1728739514164,8.36,146.77,146.75,0.12502]
[1728739514563,3.4077,146.76,146.75,0.12502]
[1728739515567,11.79727431,146.77,146.75,0.12502]
[1728739516362,15.20487431,146.77,146.75,0.12502]
[1728739516862,6.84487431,146.77,146.75,0.12502]
[1728739518068,3.43727431,146.77,146.75,0.12502]
[1728739518269,3.45399672,146.78,146.76,8.36]
[1728739518467,8.36,146.8,146.76,8.36]
[1728739518668,8.36,146.79,146.75,0.12502]
[1728739518866,8.36,146.79,146.75,8.48502]
[1728739519565,3.46763271,146.78,146.75,8.48502]
[1728739519971,8.36,146.79,146.75,8.48502]
[1728739520370,11.7672,146.79,146.75,8.48502]
[1728739520573,6.8990366,146.79,146.75,8.48502]
[1728739523276,11.8518366,146.79,146.75,8.48502]
[1728739523472,3.4073,146.78,146.75,0.12502]
[1728739523674,11.7673,146.78,146.75,0.12502]
[1728739525875,8.36,146.76,146.75,0.12502]
[1728739527472,11.7677,146.76,146.75,0.12502]
[1728739530481,3.4077,146.76,146.75,0.12502]
[1728739530675,11.7677,146.76,146.75,0.12502]
[1728739532677,6.80580653,146.77,146.75,0.12502]
[1728739532885,3.4075,146.77,146.75,0.12502]
[1728739533484,3.48082418,146.76,146.75,0.12502]
[1728739534378,71.11371142,146.83,146.75,0.12502]
[1728739534586,8.36,146.8,146.75,8.48502]
[1728739534784,11.82070972,146.8,146.75,8.48502]
[1728739535076,3.4067,146.79,146.75,8.48502]
[1728739537178,3.46070972,146.8,146.76,8.36]
[1728739537379,8.36,146.8,146.76,8.36]
[1728739537581,11.84249107,146.8,146.76,8.36]
[1728739537885,15.24899107,146.8,146.76,8.36]
[1728739539194,11.7667,146.79,146.75,8.48502]
[1728739539489,8.36,146.78,146.75,0.12502]
[1728739539985,15.21425174,146.78,146.75,0.12502]
[1728739540185,8.36,146.77,146.75,0.12502]
[1728739541186,11.7672,146.77,146.75,0.12502]
[1728739543784,3.4074,146.76,146.75,0.12502]
[1728739544085,8.36,146.77,146.75,0.12502]
[1728739544477,11.7674,146.76,146.75,0.12502]
[1728739545482,3.4074,146.76,146.75,0.12502]
[1728739547484,11.7672,146.77,146.75,0.12502]
[1728739547896,8.36,146.77,146.75,0.12502]
[1728739549394,11.7672,146.77,146.75,0.12502]
[1728739549887,3.4074,146.76,146.75,0.12502]
[1728739551695,3.44715174,146.78,146.75,0.12502]
[1728739551898,8.36,146.78,146.75,0.12502]
[1728739552192,11.76603888,146.78,146.75,0.12502]
[1728739553391,15.17303888,146.78,146.75,0.12502]
[1728739555297,8.36,146.77,146.75,0.12502]
[1728739558590,6.81303888,146.78,146.75,0.12502]
[1728739558795,3.40603888,146.78,146.75,8.48502]
[1728739558998,8.36,146.8,146.75,8.48502]
[1728739559491,11.75421742,146.8,146.75,8.48502]
[1728739559699,3.4067,146.79,146.75,8.48502]
[1728739560398,11.75421742,146.8,146.75,8.48502]
[1728739560695,15.16071742,146.8,146.75,8.48502]
[1728739562489,11.75421742,146.8,146.75,8.48502]
[1728739562687,3.4067,146.79,146.75,8.48502]
[1728739562887,11.7667,146.79,146.75,8.48502]
[1728739563298,11.7667,146.79,146.75,0.12502]
[1728739565797,3.4072,146.77,146.75,0.12502]
[1728739565996,8.36,146.76,146.75,0.12502]
[1728739566500,11.7674,146.76,146.75,0.12502]
[1728739570102,8.36,146.76,146.75,0.12502]
[1728739570800,15.09029343,146.77,146.75,0.12502]
[1728739571498,11.68309343,146.77,146.75,0.12502]
[1728739571800,3.32309343,146.77,146.75,0.12502]
[1728739572105,11.7668,146.79,146.75,0.12502]
[1728739572602,15.24885405,146.79,146.75,0.12502]
[1728739573003,11.84205405,146.79,146.75,0.12502]
[1728739573206,3.407,146.78,146.75,0.12502]
[1728739574001,11.767,146.78,146.75,0.12502]
[1728739574403,3.4074,146.76,146.75,0.12502]
[1728739575609,15.23289197,146.77,146.75,0.12502]
[1728739578116,3.46569197,146.77,146.75,0.12502]
[1728739578316,11.767,146.78,146.75,0.12502]
[1728739578512,8.36,146.79,146.75,0.12502]
[1728739578706,3.46286012,146.78,146.75,0.12502]
[1728739580113,65.61005443,146.83,146.77,8.36]
[1728739580315,62.88895443,146.83,146.78,8.36]
[1728739580515,62.88895443,146.83,146.8,8.36]
[1728739580816,66.29485443,146.83,146.8,8.36]
[1728739581515,62.88895443,146.83,146.8,8.36]
[1728739582721,66.29475443,146.83,146.8,8.36]
[1728739583318,8.36,146.82,146.78,8.36]
[1728739585013,11.7661,146.82,146.77,8.36]
[1728739593130,3.4062,146.81,146.77,8.36]
[1728739599727,3.4062,146.81,146.76,3.4073]
[1728739599922,3.4062,146.81,146.77,8.36]
[1728739602727,3.4062,146.81,146.78,8.36]
[1728739602928,8.36,146.83,146.78,8.36]
[1728739603228,3.4061,146.82,146.78,8.36]
[1728739605029,2.7599,146.86,146.78,8.36]
[1728739605327,3.4058,146.83,146.8,8.36]
[1728739619045,11.7658,146.83,146.79,8.36]
[1728739619244,11.766,146.82,146.77,8.36]
[1728739619542,8.36,146.82,146.77,8.36]
[1728739620045,3.4062,146.81,146.77,8.36]
[1728739621040,3.4062,146.81,146.78,8.36]
[1728739628744,3.4067,146.79,146.76,8.36]
[1728739633150,3.4071,146.78,146.75,8.48502]
[1728739635251,3.4071,146.78,146.77,8.36]
[1728739636848,3.4071,146.78,146.76,8.36]
[1728739638657,11.78747557,146.8,146.76,8.36]
[1728739638658,3.4068,146.79,146.76,8.36]
[1728739639250,11.78747557,146.8,146.75,0.12502]
[1728739639454,8.36,146.79,146.75,0.12502]
[1728739639857,3.4074,146.77,146.75,0.12502]
[1728739640456,3.4071,146.78,146.75,0.12502]
[1728739641749,3.4071,146.78,146.76,8.36]
[1728739641953,3.406,146.83,146.77,8.36]
[1728739642156,3.406,146.83,146.81,8.36]
[1728739645157,3.4057,146.84,146.81,8.36]
[1728739646464,11.7657,146.84,146.8,8.36]
[1728739649365,8.36,146.84,146.81,8.36]
[1728739649863,11.7656,146.84,146.81,8.36]
[1728739650969,8.36,146.83,146.78,8.36]
[1728739651163,3.4058,146.83,146.78,8.36]
[1728739651466,11.7658,146.83,146.78,8.36]
[1728739652473,11.7658,146.83,146.79,8.36]
[1728739652671,3.4052,146.86,146.81,8.36]
[1728739652966,8.36,146.85,146.81,8.36]
[1728739653171,3.48253727,146.87,146.81,8.36]
[1728739653473,11.7651,146.86,146.81,8.36]
[1728739654465,3.4051,146.86,146.82,8.36]
[1728739654968,3.48253727,146.87,146.82,8.36]
[1728739655166,8.48502,146.87,146.82,8.36]
[1728739655370,3.4051,146.86,146.82,8.36]
[1728739657667,3.53318201,146.87,146.82,11.766]
[1728739657871,11.89318201,146.87,146.82,11.766]
[1728739658267,11.89318201,146.87,146.82,8.36]
[1728739658468,8.36,146.86,146.76,7.9242]
[1728739658668,8.36,146.86,146.77,3.37124989]
[1728739658867,8.36,146.86,146.81,8.36]
[1728739659268,11.7653,146.86,146.81,8.36]
[1728739659674,11.7653,146.86,146.82,8.36]
[1728739662685,3.53318201,146.87,146.82,8.36]
[1728739662686,3.52992,146.87,146.82,8.36]
[1728739662889,8.36,146.83,146.79,8.36]
[1728739663382,11.7657,146.84,146.8,8.36]
[1728739664782,3.4055,146.85,146.81,8.36]
[1728739664977,11.7655,146.85,146.81,8.36]
[1728739667787,11.7655,146.85,146.79,11.7666]
[1728739670592,3.4055,146.84,146.79,11.7666]
[1728739672888,3.4055,146.84,146.81,8.36]
[1728739674495,3.4054,146.85,146.81,8.36]
[1728739674695,8.36,146.86,146.82,8.36]
[1728739675697,11.7652,146.86,146.82,8.36]
[1728739677693,11.7652,146.86,146.8,11.7664]
[1728739678694,3.4053,146.85,146.8,11.7664]
[1728739680098,3.4053,146.85,146.8,8.36]
[1728739680302,11.7653,146.85,146.8,8.36]
[1728739680501,3.4055,146.84,146.79,8.36]
[1728739681609,3.4055,146.84,146.8,8.36]
[1728739682405,8.36,146.86,146.8,8.36]
[1728739682707,3.4051,146.86,146.82,8.36]
[1728739686903,8.36,146.85,146.82,8.36]
[1728739688509,11.7653,146.85,146.8,8.36]
[1728739688710,8.36,146.82,146.76,7.9242]
[1728739689012,8.36,146.82,146.76,16.2842]
[1728739689312,3.4064,146.81,146.76,16.2842]
[1728739690609,3.4066,146.8,146.76,13.6273]
[1728739691212,3.4067,146.79,146.76,13.6273]
[1728739692210,8.1152,146.86,146.78,8.36]
[1728739692513,8.36,146.82,146.78,8.36]
[1728739693414,11.7661,146.82,146.78,8.36]
[1728739695722,8.36,146.83,146.78,8.36]
[1728739697522,11.7658,146.83,146.78,8.36]
[1728739698024,11.7658,146.83,146.78,11.7669]
[1728739699024,11.7658,146.83,146.78,8.36]
[1728739701026,8.36,146.82,146.78,8.36]
[1728739702620,11.7658,146.83,146.79,8.36]
[1728739705423,8.36,146.82,146.77,11.7671]
[1728739707019,11.766,146.82,146.77,11.7671]
[1728739712031,3.406,146.82,146.77,11.7671]
[1728739712226,3.406,146.82,146.78,11.7669]
[1728739713530,11.766,146.82,146.78,11.7669]
[1728739713732,11.766,146.82,146.78,8.36]
[1728739715028,8.36,146.81,146.76,7.9368]
[1728739715233,11.7665,146.8,146.76,7.9368]
[1728739715733,11.7665,146.8,146.76,19.7042]
[1728739717336,3.4065,146.8,146.76,19.7042]
[1728739717535,3.4065,146.8,146.77,8.36]
[1728739720330,8.36,146.82,146.77,8.36]
[1728739720530,3.4063,146.81,146.77,11.7671]
[1728739722033,8.36,146.8,146.76,16.2968]
[1728739722230,8.36,146.8,146.76,19.7041]
[1728739723034,11.7667,146.79,146.76,7.9368]
[1728739723931,11.7667,146.79,146.75,3.53262]
[1728739723932,3.4071,146.78,146.75,0.12502]
[1728739724134,11.7671,146.78,146.75,0.12502]
[1728739724438,70.98182393,146.86,146.75,0.12502]
[1728739724738,11.7669,146.78,146.75,0.12502]
[1728739727948,3.4069,146.78,146.75,0.12502]
[1728739728843,11.7671,146.78,146.75,0.12502]
[1728739729136,8.36,146.78,146.75,0.12502]
[1728739729542,3.4074,146.76,146.75,0.12502]
[1728739731544,70.98182393,146.86,146.75,0.12502]
[1728739731842,3.4073,146.77,146.75,0.12502]
[1728739732040,8.36,146.79,146.75,0.12502]
[1728739733642,3.4071,146.78,146.75,0.12502]
[1728739734251,3.4072,146.77,146.75,0.12502]
[1728739734542,8.36,146.79,146.75,0.12502]
[1728739734747,3.4074,146.76,146.75,0.12502]
[1728739741064,8.36,146.77,146.75,0.12502]
[1728739741253,11.7672,146.77,146.75,0.12502]
[1728739745861,8.36,146.77,146.75,0.12502]
[1728739747363,8.36,146.76,146.75,0.12502]
[1728739748857,3.4073,146.77,146.75,0.12502]
[1728739749053,11.767,146.78,146.75,0.12502]
[1728739757869,8.36,146.78,146.75,0.12502]
[1728739759473,6.75977416,146.79,146.75,0.12502]
[1728739759674,8.36,146.78,146.75,0.12502]
[1728739764179,6.75977416,146.79,146.75,0.12502]
[1728739764379,8.36,146.78,146.75,0.12502]
[1728739768583,11.7669,146.78,146.75,0.12502]
[1728739769582,3.35297416,146.79,146.75,0.12502]
[1728739769779,8.36,146.78,146.75,0.12502]
[1728739769985,11.7722823,146.78,146.75,0.12502]
[1728739771391,15.1791823,146.78,146.75,0.12502]
[1728739775387,11.7669,146.78,146.75,3.53262]
[1728739784798,3.4065,146.8,146.77,8.36]
[1728739785395,3.4065,146.8,146.76,11.7673]
[1728739786097,3.4067,146.79,146.76,8.36]
[1728739786798,3.4065,146.8,146.77,8.36]
[1728739792595,3.4064,146.81,146.76,11.7674]
[1728739792899,11.7664,146.81,146.76,11.7674]
[1728739793800,11.7664,146.81,146.77,3.4071]
[1728739801117,11.7666,146.8,146.76,3.4073]
[1728739801418,11.7666,146.8,146.77,8.36]
[1728739801621,8.36,146.81,146.78,8.36]
[1728739801919,11.7662,146.81,146.78,8.36]
[1728739802513,8.36,146.82,146.78,8.36]
[1728739802711,11.766,146.82,146.78,11.7669]
[1728739804519,11.766,146.82,146.78,8.36]
[1728739804719,3.406,146.82,146.78,8.36]
[1728739804918,11.766,146.82,146.78,8.36]
[1728739809027,11.766,146.82,146.77,3.407]
[1728739809028,11.7664,146.81,146.76,11.7673]
[1728739810529,3.4065,146.8,146.76,11.7673]
[1728739813227,3.4064,146.81,146.77,11.767]
[1728739815632,8.36,146.82,146.77,8.36]
[1728739815831,11.766,146.82,146.78,3.4069]
[1728739820629,11.7664,146.81,146.76,11.7672]
[1728739822131,8.36,146.77,146.75,0.12502]
[1728739822343,8.36,146.76,146.75,0.12502]
[1728739822534,11.7674,146.76,146.75,0.12502]
[1728739823033,11.7674,146.76,146.69,3.53402]
[1728739823034,3.408,146.74,146.69,3.53402]
[1728739823333,8.36,146.73,146.69,11.89402]
[1728739823534,11.768,146.74,146.69,11.89402]
[1728739825134,11.768,146.74,146.69,3.53402]
[1728739825334,11.768,146.74,146.7,8.36]
[1728739827438,3.41510026,146.76,146.7,8.36]
[1728739827635,8.36,146.75,146.7,11.7686]
[1728739828031,8.36,146.75,146.7,8.36]
[1728739828233,3.408,146.74,146.7,8.36]
[1728739829338,11.7677,146.75,146.7,11.7688]
[1728739829728,11.7677,146.75,146.71,8.36]
[1728739830640,11.7677,146.75,146.7,11.7688]
[1728739831833,8.36,146.75,146.7,8.36]
[1728739833438,3.4079,146.74,146.7,11.7688]
[1728739837043,3.4079,146.74,146.69,0.12502]
[1728739837044,11.7677,146.75,146.71,8.36]
[1728739837242,8.36,146.75,146.71,11.7684]
[1728739837446,3.46115562,146.77,146.72,8.36]
[1728739837749,8.36,146.76,146.72,11.7683]
[1728739839847,11.7674,146.76,146.72,11.7683]
[1728739841047,8.36,146.76,146.72,11.7683]
[1728739841252,3.407,146.78,146.73,11.7679]
[1728739841436,8.36,146.77,146.73,11.7679]
[1728739842446,3.40808383,146.79,146.73,11.7679]
[1728739842650,8.36,146.77,146.73,11.7679]
[1728739843544,3.4071,146.78,146.73,11.7679]
[1728739843752,11.7671,146.78,146.73,11.7679]
[1728739844445,3.4069,146.79,146.74,8.36]
[1728739844645,8.36,146.78,146.73,8.36]
[1728739844941,8.36,146.77,146.73,8.36]
[1728739845146,8.36,146.77,146.74,3.4078]
[1728739845347,8.36,146.77,146.73,8.36]
[1728739846440,8.36,146.77,146.73,11.7681]
[1728739846650,11.7672,146.77,146.73,11.7681]
[1728739846851,8.36,146.76,146.73,8.36]
[1728739849247,8.36,146.76,146.72,3.4083]
[1728739849456,11.7675,146.76,146.72,11.7683]
[1728739849749,8.36,146.75,146.7,16.7405]
[1728739849949,8.36,146.75,146.71,8.36]
[1728739850350,3.4077,146.75,146.71,11.7683]
[1728739852141,3.34195378,146.78,146.7,8.3805]
[1728739852142,8.36,146.74,146.7,8.3805]
[1728739852342,8.36,146.73,146.7,5.5546]
[1728739852548,8.36,146.73,146.69,8.48502]
[1728739852956,11.7682,146.73,146.69,11.89392]
[1728739854556,8.36,146.73,146.7,3.4088]
[1728739854742,3.4079,146.74,146.7,3.4088]
[1728739854943,3.4079,146.74,146.7,11.7688]
[1728739857454,3.42649117,146.76,146.7,11.7688]
[1728739857649,11.7677,146.75,146.7,11.7688]
[1728739862147,8.36,146.75,146.7,11.7688]
[1728739862353,3.4079,146.74,146.7,11.7688]
[1728739868548,3.4079,146.74,146.72,8.36]
[1728739870062,3.4079,146.74,146.71,11.7685]
[1728739870453,3.4079,146.74,146.71,8.36]
[1728739870650,3.4082,146.73,146.69,3.53392]
[1728739870855,3.4082,146.73,146.69,11.89392]
[1728739871262,3.4082,146.73,146.7,8.36]
[1728739872462,3.4079,146.74,146.71,8.36]
[1728739873355,4.86,146.77,146.63,0.12502]
[1728739873556,3.2922,146.64,146.59,8.36]
[1728739874657,11.7706,146.63,146.58,8.36]
[1728739875060,8.36,146.63,146.57,0.12502]
[1728739875363,3.4109,146.61,146.57,8.48502]
[1728739875660,11.7709,146.61,146.57,8.48502]
[1728739877461,3.4109,146.61,146.57,8.48502]
[1728739878966,8.36,146.62,146.58,8.36]
[1728739879468,3.4108,146.62,146.58,8.36]
[1728739879768,8.36,146.61,146.57,8.48502]
[1728739879967,3.411,146.61,146.57,8.48502]
[1728739880360,3.411,146.61,146.58,8.36]
[1728739881564,8.36,146.62,146.57,0.12502]
[1728739881766,3.4114,146.59,146.57,0.12502]
[1728739883859,3.4114,146.59,146.57,8.48502]
[1728739885771,8.36,146.62,146.57,8.48502]
[1728739885971,3.4112,146.6,146.57,8.48502]
[1728739886166,8.36,146.62,146.57,0.12502]
[1728739886370,3.4115,146.59,146.57,0.12502]
[1728739886673,8.36,146.59,146.57,0.12502]
[1728739886873,3.4116,146.58,146.57,0.12502]
[1728739887568,3.4115,146.59,146.57,0.12502]
[1728739889571,3.4112,146.6,146.57,0.12502]
[1728739889876,3.4112,146.6,146.57,8.48502]
[1728739890072,3.4108,146.62,146.58,8.36]
[1728739890271,8.36,146.62,146.58,8.36]
[1728739890865,11.7707,146.62,146.58,8.36]
[1728739891072,8.36,146.62,146.58,11.7715]
[1728739891971,3.4105,146.63,146.58,11.7715]
[1728739892171,11.7705,146.63,146.58,11.7715]
[1728739892368,5.39453476,146.67,146.58,8.36]
[1728739892569,3.41,146.65,146.61,8.36]
[1728739892876,64.49895701,146.72,146.64,8.36]
[1728739893078,11.7694,146.68,146.64,8.36]
[1728739893471,8.36,146.68,146.64,8.36]
[1728739893676,11.7695,146.67,146.63,8.36]
[1728739895266,11.7695,146.67,146.6,2.6085]
[1728739895467,11.7695,146.67,146.63,8.36]
[1728739896375,11.7695,146.67,146.62,11.7706]
[1728739899476,3.4094,146.68,146.63,11.7703]
[1728739899682,11.7694,146.68,146.63,11.7703]
[1728739900679,0.12502,146.69,146.65,8.36]
[1728739901081,0.12502,146.69,146.67,8.36]
[1728739902583,0.12502,146.69,146.68,8.36]
[1728739903083,0.12502,146.69,146.68,11.7692]
[1728739904783,0.12502,146.69,146.68,8.36]
[1728739905376,0.12502,146.69,146.6,2.6085]
[1728739905580,0.12502,146.69,146.65,8.36]
[1728739905786,0.12502,146.69,146.66,8.36]
[1728739906087,0.12502,146.69,146.66,11.7696]
[1728739907479,3.53402,146.69,146.66,11.7696]
[1728739910583,3.53402,146.69,146.67,8.36]
[1728739910790,0.12502,146.69,146.68,11.7692]
[1728739911294,0.12502,146.69,146.6,2.6085]
[1728739911295,0.12502,146.69,146.67,8.36]
[1728739912393,0.12502,146.69,146.67,11.7694]
[1728739913087,0.12502,146.69,146.68,11.7692]
[1728739915890,3.4082,146.73,146.69,3.409]
[1728739918489,3.4079,146.74,146.69,3.409]
[1728739918697,11.7679,146.74,146.69,3.409]
[1728739919496,11.7679,146.74,146.7,3.4087]
[1728739919687,11.7679,146.74,146.7,11.7687]
[1728739921487,8.36,146.74,146.7,8.36]
[1728739921691,3.53272,146.75,146.71,11.7685]
[1728739922591,11.89272,146.75,146.71,3.4085]
[1728739922794,11.89272,146.75,146.7,3.4087]
[1728739924494,0.12502,146.75,146.71,11.7685]
[1728739926096,0.12502,146.75,146.68,3.40479882]
[1728739926097,3.4086,146.71,146.66,5.9878]
[1728739926302,8.36,146.7,146.66,2.5782]
[1728739926495,8.36,146.7,146.66,10.9382]
[1728739926896,8.36,146.7,146.67,3.4093]
[1728739927494,11.7685,146.72,146.67,3.4093]
[1728739928603,3.4079,146.74,146.7,8.36]
[1728739929695,11.7679,146.74,146.7,8.36]
[1728739929998,3.4081,146.73,146.7,8.36]
[1728739930599,3.4081,146.73,146.69,3.4088]
[1728739930799,3.4085,146.72,146.68,8.36]
[1728739930999,8.36,146.73,146.67,11.7693]
[1728739931200,8.36,146.71,146.67,3.4093]
[1728739931399,11.7687,146.71,146.67,3.4093]
[1728739932196,8.36,146.73,146.69,8.36]
[1728739932400,3.4084,146.72,146.69,8.36]
[1728739934292,40.92,146.73,146.52,250.22942505]
[1728739934497,0.12502,146.69,146.55,5.4485]
[1728739934693,8.36,146.6,146.55,13.8085]
[1728739935796,11.7712,146.6,146.55,13.8085]
[1728739936304,3.4112,146.6,146.56,8.36]
[1728739936500,3.4112,146.6,146.55,5.4485]
[1728739937203,13.11,146.64,146.55,5.4485]